[Event "Titled Tuesday Blitz December 14 2021"]
[White "Terry, Renato"]
[Black "Kislov, Oleg"]
[WhiteFideId "3803457"]
[BlackFideId "13503774"]
[WhiteElo "2577"]
[BlackElo "2252"]
[Result "1-0"]
[Round "02"]
[TimeControl "180+1"]
[Date "2021.12.14"]
[WhiteClock "0:00:56"]
[BlackClock "0:00:27"]

1. e4 {[%clk 0:03:00]}  e6 {[%clk 0:02:58]} 2. d4 {[%clk 0:03:00]}  d5 {[%clk 0:02:58]} 3. exd5 {[%clk 0:03:01]}  exd5 {[%clk 0:02:58]} 4. Nf3 {[%clk 0:03:02]}  Nf6 {[%clk 0:02:58]} 5. Bd3 {[%clk 0:03:01]}  c5 {[%clk 0:02:55]} 6. O-O {[%clk 0:02:57]}  Nc6 {[%clk 0:02:54]} 7. dxc5 {[%clk 0:02:54]}  Bxc5 {[%clk 0:02:53]} 8. Re1+ {[%clk 0:02:47]}  Be6 {[%clk 0:02:53]} 9. Be3 {[%clk 0:02:48]}  d4 {[%clk 0:02:47]} 10. Bg5 {[%clk 0:02:47]}  O-O {[%clk 0:02:46]} 11. Nbd2 {[%clk 0:02:47]}  h6 {[%clk 0:02:46]} 12. Bh4 {[%clk 0:02:47]}  Be7 {[%clk 0:02:39]} 13. a3 {[%clk 0:02:39]}  a5 {[%clk 0:02:37]} 14. Rxe6 {[%clk 0:02:17]}  fxe6 {[%clk 0:02:36]} 15. Qe2 {[%clk 0:02:17]}  Qd7 {[%clk 0:02:30]} 16. Re1 {[%clk 0:02:13]}  Rae8 {[%clk 0:02:20]} 17. Bg6 {[%clk 0:02:03]}  Rc8 {[%clk 0:02:11]} 18. Bd3 {[%clk 0:02:01]}  Bd6 {[%clk 0:01:51]} 19. Ne4 {[%clk 0:01:43]}  Be7 {[%clk 0:01:16]} 20. Nxf6+ {[%clk 0:01:35]}  Bxf6 {[%clk 0:01:15]} 21. Qe4 {[%clk 0:01:36]}  g5 {[%clk 0:01:09]} 22. Bg3 {[%clk 0:01:36]}  Rce8 {[%clk 0:01:05]} 23. h3 {[%clk 0:01:18]}  Qg7 {[%clk 0:01:03]} 24. Nh2 {[%clk 0:01:16]}  h5 {[%clk 0:01:02]} 25. Nf3 {[%clk 0:01:16]}  Rf7 {[%clk 0:00:35]} 26. Nd2 {[%clk 0:01:11]}  g4 {[%clk 0:00:30]} 27. h4 {[%clk 0:01:01]}  Rd7 {[%clk 0:00:30]} 28. Nc4 {[%clk 0:01:00]}  Rd5 {[%clk 0:00:27]} 29. Qxd5 {[%clk 0:00:56]}  exd5 {[%clk 0:00:27]} 30. Rxe8+ {[%clk 0:00:55]}  Kf7 {[%clk 0:00:27]} 31. Nd6# {[%clk 0:00:56]} 1-0


[Site "https://www.chess.com"]

[Event "Titled Tuesday Blitz December 14 2021"]
[White "Tokman, Ariel"]
[Black "Murzin, Volodar"]
[WhiteFideId "117420"]
[BlackFideId "44155573"]
[WhiteElo "2293"]
[BlackElo "2481"]
[Result "0-1"]
[Round "02"]
[TimeControl "180+1"]
[Date "2021.12.15"]
[WhiteClock "0:00:09"]
[BlackClock "0:00:07"]

1. b3 {[%clk 0:03:00]}  e5 {[%clk 0:02:59]} 2. Bb2 {[%clk 0:02:59]}  Nc6 {[%clk 0:02:59]} 3. e3 {[%clk 0:02:58]}  g6 {[%clk 0:02:57]} 4. c4 {[%clk 0:02:58]}  Bg7 {[%clk 0:02:57]} 5. a3 {[%clk 0:02:58]}  Nge7 {[%clk 0:02:57]} 6. Qc2 {[%clk 0:02:58]}  O-O {[%clk 0:02:57]} 7. Nf3 {[%clk 0:02:58]}  d6 {[%clk 0:02:56]} 8. d3 {[%clk 0:02:58]}  Bf5 {[%clk 0:02:55]} 9. Nbd2 {[%clk 0:02:58]}  a5 {[%clk 0:02:52]} 10. Be2 {[%clk 0:02:58]}  Qd7 {[%clk 0:02:49]} 11. O-O {[%clk 0:02:58]}  Rae8 {[%clk 0:02:49]} 12. Rfe1 {[%clk 0:02:58]}  Kh8 {[%clk 0:02:39]} 13. Bc3 {[%clk 0:02:58]}  d5 {[%clk 0:02:23]} 14. cxd5 {[%clk 0:02:57]}  Nxd5 {[%clk 0:02:24]} 15. Bb2 {[%clk 0:02:57]}  Nde7 {[%clk 0:02:19]} 16. Ne4 {[%clk 0:02:54]}  Qc8 {[%clk 0:02:10]} 17. Rac1 {[%clk 0:02:54]}  Rd8 {[%clk 0:02:04]} 18. Qb1 {[%clk 0:02:41]}  Be6 {[%clk 0:02:00]} 19. Nc5 {[%clk 0:02:39]}  Bd5 {[%clk 0:01:55]} 20. e4 {[%clk 0:02:38]}  Be6 {[%clk 0:01:54]} 21. Qa1 {[%clk 0:02:31]}  f6 {[%clk 0:01:53]} 22. Nxe6 {[%clk 0:02:29]}  Qxe6 {[%clk 0:01:53]} 23. d4 {[%clk 0:02:20]}  exd4 {[%clk 0:01:48]} 24. Nxd4 {[%clk 0:02:21]}  Nxd4 {[%clk 0:01:45]} 25. Bxd4 {[%clk 0:02:22]}  Nc6 {[%clk 0:01:33]} 26. Bc3 {[%clk 0:02:14]}  Rfe8 {[%clk 0:01:00]} 27. Bc4 {[%clk 0:02:09]}  Qe7 {[%clk 0:00:59]} 28. Bd5 {[%clk 0:02:05]}  Ne5 {[%clk 0:00:30]} 29. Bxe5 {[%clk 0:01:49]}  fxe5 {[%clk 0:00:26]} 30. Bxb7 {[%clk 0:01:45]}  Rf8 {[%clk 0:00:26]} 31. Bd5 {[%clk 0:01:41]}  Rd6 {[%clk 0:00:23]} 32. Qb2 {[%clk 0:01:38]}  Rdf6 {[%clk 0:00:20]} 33. Re2 {[%clk 0:01:34]}  Bh6 {[%clk 0:00:19]} 34. Rcc2 {[%clk 0:01:21]}  Rd8 {[%clk 0:00:08]} 35. g3 {[%clk 0:01:15]}  Rdd6 {[%clk 0:00:06]} 36. Qc3 {[%clk 0:01:12]}  c6 {[%clk 0:00:06]} 37. Bc4 {[%clk 0:01:08]}  Qc7 {[%clk 0:00:04]} 38. Kg2 {[%clk 0:01:07]}  Rd4 {[%clk 0:00:05]} 39. a4 {[%clk 0:01:02]}  Bf8 {[%clk 0:00:04]} 40. Rc1 {[%clk 0:00:55]}  Bb4 {[%clk 0:00:04]} 41. Qe3 {[%clk 0:00:53]}  Qd6 {[%clk 0:00:04]} 42. h4 {[%clk 0:00:50]}  Bd2 {[%clk 0:00:04]} 43. Rxd2 {[%clk 0:00:44]}  Rxd2 {[%clk 0:00:05]} 44. Rf1 {[%clk 0:00:44]}  Qd4 {[%clk 0:00:06]} 45. Qxd4 {[%clk 0:00:36]}  Rxd4 {[%clk 0:00:06]} 46. f3 {[%clk 0:00:33]}  Kg7 {[%clk 0:00:06]} 47. Rf2 {[%clk 0:00:30]}  h6 {[%clk 0:00:06]} 48. Rc2 {[%clk 0:00:28]}  Kf8 {[%clk 0:00:06]} 49. Re2 {[%clk 0:00:22]}  Ke7 {[%clk 0:00:06]} 50. Re3 {[%clk 0:00:15]}  Rd2+ {[%clk 0:00:05]} 51. Kh3 {[%clk 0:00:14]}  Kd6 {[%clk 0:00:05]} 52. Kg4 {[%clk 0:00:14]}  Kc5 {[%clk 0:00:05]} 53. h5 {[%clk 0:00:14]}  Kd4 {[%clk 0:00:04]} 54. Re1 {[%clk 0:00:13]}  g5 {[%clk 0:00:04]} 55. Bg8 {[%clk 0:00:10]}  Rf2 {[%clk 0:00:04]} 56. Bh7 {[%clk 0:00:09]}  R2xf3 {[%clk 0:00:04]} 57. Bf5 {[%clk 0:00:10]}  Rxb3 {[%clk 0:00:04]} 58. Rd1+ {[%clk 0:00:10]}  Rd3 {[%clk 0:00:04]} 59. Rc1 {[%clk 0:00:11]}  c5 {[%clk 0:00:05]} 60. Rb1 {[%clk 0:00:11]}  c4 {[%clk 0:00:06]} 61. Rb5 {[%clk 0:00:10]}  c3 {[%clk 0:00:06]} 62. Rd5+ {[%clk 0:00:09]}  Ke3 {[%clk 0:00:06]} 63. Rxa5 {[%clk 0:00:08]}  c2 {[%clk 0:00:07]} 64. Rc5 {[%clk 0:00:09]}  Kd2 {[%clk 0:00:07]} 0-1


[Site "https://www.chess.com"]

[Event "Titled Tuesday Blitz December 14 2021"]
[White "Toshali, V"]
[Black "Shimelkov, Vasiliy"]
[WhiteFideId "5072611"]
[BlackFideId "13701630"]
[WhiteElo "1754"]
[BlackElo "2073"]
[Result "0-1"]
[Round "02"]
[TimeControl "180+1"]
[Date "2021.12.15"]
[WhiteClock "0:00:02"]
[BlackClock "0:00:11"]

1. d4 {[%clk 0:03:00]}  d5 {[%clk 0:02:59]} 2. Nf3 {[%clk 0:02:59]}  Nf6 {[%clk 0:02:58]} 3. c3 {[%clk 0:02:57]}  Bf5 {[%clk 0:02:56]} 4. Qb3 {[%clk 0:02:55]}  Qc8 {[%clk 0:02:50]} 5. Bf4 {[%clk 0:02:49]}  e6 {[%clk 0:02:49]} 6. Nbd2 {[%clk 0:02:45]}  c5 {[%clk 0:02:47]} 7. e3 {[%clk 0:02:42]}  c4 {[%clk 0:02:46]} 8. Qa4+ {[%clk 0:02:13]}  Nbd7 {[%clk 0:02:41]} 9. Nh4 {[%clk 0:02:08]}  Bg6 {[%clk 0:02:32]} 10. Be2 {[%clk 0:01:59]}  Be7 {[%clk 0:02:31]} 11. Nxg6 {[%clk 0:01:45]}  hxg6 {[%clk 0:02:31]} 12. h3 {[%clk 0:01:41]}  a6 {[%clk 0:02:27]} 13. Bf3 {[%clk 0:01:40]}  b5 {[%clk 0:02:25]} 14. Qc2 {[%clk 0:01:41]}  O-O {[%clk 0:02:25]} 15. e4 {[%clk 0:01:40]}  Nb6 {[%clk 0:02:16]} 16. e5 {[%clk 0:01:32]}  Ne8 {[%clk 0:02:12]} 17. h4 {[%clk 0:01:32]}  b4 {[%clk 0:01:51]} 18. h5 {[%clk 0:01:28]}  g5 {[%clk 0:01:49]} 19. Be3 {[%clk 0:01:21]}  b3 {[%clk 0:01:33]} 20. axb3 {[%clk 0:01:19]}  cxb3 {[%clk 0:01:33]} 21. Nxb3 {[%clk 0:01:18]}  Nc4 {[%clk 0:01:33]} 22. Bc1 {[%clk 0:01:09]}  a5 {[%clk 0:01:32]} 23. Nd2 {[%clk 0:01:09]}  f5 {[%clk 0:01:03]} 24. exf6 {[%clk 0:00:57]}  Rxf6 {[%clk 0:00:56]} 25. Nxc4 {[%clk 0:00:56]}  Qxc4 {[%clk 0:00:55]} 26. Bxg5 {[%clk 0:00:51]}  Rxf3 {[%clk 0:00:51]} 27. Bxe7 {[%clk 0:00:51]}  Rf4 {[%clk 0:00:44]} 28. f3 {[%clk 0:00:19]}  Rxd4 {[%clk 0:00:40]} 29. Kf2 {[%clk 0:00:18]}  Rf4 {[%clk 0:00:31]} 30. Rad1 {[%clk 0:00:17]}  Rf7 {[%clk 0:00:29]} 31. Bg5 {[%clk 0:00:17]}  e5 {[%clk 0:00:26]} 32. h6 {[%clk 0:00:17]}  e4 {[%clk 0:00:25]} 33. hxg7 {[%clk 0:00:16]}  Rxg7 {[%clk 0:00:23]} 34. Bh6 {[%clk 0:00:14]}  Rf7 {[%clk 0:00:20]} 35. Rd4 {[%clk 0:00:13]}  Qc5 {[%clk 0:00:18]} 36. Qd2 {[%clk 0:00:14]}  Qe7 {[%clk 0:00:16]} 37. Qg5+ {[%clk 0:00:13]}  Qxg5 {[%clk 0:00:15]} 38. Bxg5 {[%clk 0:00:14]}  exf3 {[%clk 0:00:16]} 39. gxf3 {[%clk 0:00:14]}  Nc7 {[%clk 0:00:16]} 40. Bh4 {[%clk 0:00:12]}  Ne6 {[%clk 0:00:14]} 41. Rxd5 {[%clk 0:00:11]}  Nf4 {[%clk 0:00:13]} 42. Rg1+ {[%clk 0:00:12]}  Kf8 {[%clk 0:00:13]} 43. Rd4 {[%clk 0:00:11]}  Re8 {[%clk 0:00:12]} 44. Rg4 {[%clk 0:00:09]}  Ne6 {[%clk 0:00:09]} 45. Rde4 {[%clk 0:00:08]}  Nc5 {[%clk 0:00:08]} 46. Rxe8+ {[%clk 0:00:07]}  Kxe8 {[%clk 0:00:09]} 47. Rg5 {[%clk 0:00:07]}  Nd3+ {[%clk 0:00:08]} 48. Ke3 {[%clk 0:00:08]}  Nxb2 {[%clk 0:00:08]} 49. Rxa5 {[%clk 0:00:08]}  Nc4+ {[%clk 0:00:09]} 50. Kd4 {[%clk 0:00:07]}  Nxa5 {[%clk 0:00:09]} 51. Ke3 {[%clk 0:00:04]}  Nb7 {[%clk 0:00:09]} 52. Kf2 {[%clk 0:00:04]}  Kd7 {[%clk 0:00:09]} 53. Ke2 {[%clk 0:00:04]}  Kc6 {[%clk 0:00:10]} 54. Bf2 {[%clk 0:00:04]}  Kd5 {[%clk 0:00:09]} 55. Be3 {[%clk 0:00:04]}  Kc4 {[%clk 0:00:10]} 56. f4 {[%clk 0:00:04]}  Nd6 {[%clk 0:00:10]} 57. Bd4 {[%clk 0:00:03]}  Ne4 {[%clk 0:00:10]} 58. Ke3 {[%clk 0:00:02]}  Nxc3 {[%clk 0:00:10]} 59. Bxc3 {[%clk 0:00:02]}  Kxc3 {[%clk 0:00:10]} 60. Ke4 {[%clk 0:00:03]}  Kc4 {[%clk 0:00:10]} 61. Ke5 {[%clk 0:00:03]}  Kc5 {[%clk 0:00:11]} 62. f5 {[%clk 0:00:03]}  Re7+ {[%clk 0:00:09]} 63. Kf6 {[%clk 0:00:03]}  Re2 {[%clk 0:00:10]} 64. Kg7 {[%clk 0:00:03]}  Kd6 {[%clk 0:00:10]} 65. f6 {[%clk 0:00:03]}  Ke6 {[%clk 0:00:10]} 66. f7 {[%clk 0:00:04]}  Rg2+ {[%clk 0:00:10]} 67. Kf8 {[%clk 0:00:02]}  Rf2 {[%clk 0:00:11]} 68. Kg8 {[%clk 0:00:03]}  Rxf7 {[%clk 0:00:10]} 69. Kh8 {[%clk 0:00:02]}  Rb7 {[%clk 0:00:10]} 70. Kg8 {[%clk 0:00:02]}  Kf6 {[%clk 0:00:10]} 71. Kh8 {[%clk 0:00:02]}  Kg6 {[%clk 0:00:11]} 72. Kg8 {[%clk 0:00:02]}  Rb8# {[%clk 0:00:11]} 0-1


[Site "https://www.chess.com"]

[Event "Titled Tuesday Blitz December 14 2021"]
[White "Urazayev, Arystanbek"]
[Black "Hua, Lefong"]
[WhiteFideId "13709810"]
[BlackFideId "2602253"]
[WhiteElo "2321"]
[BlackElo "2597"]
[Result "1-0"]
[Round "02"]
[TimeControl "180+1"]
[Date "2021.12.14"]
[WhiteClock "0:02:14"]
[BlackClock "0:01:24"]

1. d4 {[%clk 0:03:00]}  Nf6 {[%clk 0:03:00]} 2. c4 {[%clk 0:03:01]}  g6 {[%clk 0:03:00]} 3. Nc3 {[%clk 0:03:01]}  Bg7 {[%clk 0:03:01]} 4. e4 {[%clk 0:03:02]}  d6 {[%clk 0:03:01]} 5. Be2 {[%clk 0:03:02]}  O-O {[%clk 0:03:02]} 6. h4 {[%clk 0:03:02]}  c5 {[%clk 0:02:59]} 7. d5 {[%clk 0:03:02]}  e6 {[%clk 0:02:59]} 8. h5 {[%clk 0:03:02]}  exd5 {[%clk 0:02:59]} 9. exd5 {[%clk 0:03:03]}  Re8 {[%clk 0:02:57]} 10. h6 {[%clk 0:03:03]}  Bh8 {[%clk 0:02:57]} 11. Bg5 {[%clk 0:03:04]}  Nbd7 {[%clk 0:02:53]} 12. Kf1 {[%clk 0:03:03]}  a6 {[%clk 0:02:52]} 13. g3 {[%clk 0:02:59]}  Ne5 {[%clk 0:02:48]} 14. Kg2 {[%clk 0:02:58]}  Qc7 {[%clk 0:02:41]} 15. Nf3 {[%clk 0:02:58]}  Nxf3 {[%clk 0:02:38]} 16. Bxf3 {[%clk 0:02:58]}  Bf5 {[%clk 0:02:37]} 17. g4 {[%clk 0:02:53]}  Bd7 {[%clk 0:02:28]} 18. Bf4 {[%clk 0:02:40]}  Bc8 {[%clk 0:02:17]} 19. g5 {[%clk 0:02:21]}  Nd7 {[%clk 0:02:14]} 20. Qa4 {[%clk 0:02:19]}  b5 {[%clk 0:01:45]} 21. Nxb5 {[%clk 0:02:17]}  axb5 {[%clk 0:01:42]} 22. Qxa8 {[%clk 0:02:18]}  bxc4 {[%clk 0:01:39]} 23. Qc6 {[%clk 0:02:18]}  Qxc6 {[%clk 0:01:35]} 24. dxc6 {[%clk 0:02:19]}  Ne5 {[%clk 0:01:35]} 25. Bd5 {[%clk 0:02:19]}  Be6 {[%clk 0:01:30]} 26. Bxe6 {[%clk 0:02:19]}  fxe6 {[%clk 0:01:31]} 27. Rad1 {[%clk 0:02:13]}  d5 {[%clk 0:01:25]} 28. Bxe5 {[%clk 0:02:14]}  Bxe5 {[%clk 0:01:25]} 29. Rhe1 {[%clk 0:02:15]}  Bf4 {[%clk 0:01:24]} 30. Rxd5 {[%clk 0:02:14]} 1-0


[Site "https://www.chess.com"]

[Event "Titled Tuesday Blitz December 14 2021"]
[White "Belous, Vladimir"]
[Black "Arencibia Monduy, Antonio"]
[WhiteFideId "4174003"]
[BlackFideId "3507939"]
[WhiteElo "2510"]
[BlackElo "2649"]
[Result "1-0"]
[Round "03"]
[TimeControl "180+1"]
[Date "2021.12.14"]
[WhiteClock "0:01:13"]
[BlackClock "0:00:09"]

1. c4 {[%clk 0:03:00]}  Nf6 {[%clk 0:02:57]} 2. Nc3 {[%clk 0:02:59]}  c5 {[%clk 0:02:57]} 3. g3 {[%clk 0:02:59]}  Nc6 {[%clk 0:02:57]} 4. Bg2 {[%clk 0:02:59]}  g6 {[%clk 0:02:58]} 5. Nf3 {[%clk 0:02:59]}  Bg7 {[%clk 0:02:58]} 6. d4 {[%clk 0:02:59]}  cxd4 {[%clk 0:02:58]} 7. Nxd4 {[%clk 0:03:00]}  O-O {[%clk 0:02:56]} 8. O-O {[%clk 0:03:00]}  Nxd4 {[%clk 0:02:56]} 9. Qxd4 {[%clk 0:03:00]}  d6 {[%clk 0:02:51]} 10. Bg5 {[%clk 0:03:00]}  h6 {[%clk 0:02:47]} 11. Bd2 {[%clk 0:03:00]}  a6 {[%clk 0:02:39]} 12. Qd3 {[%clk 0:02:57]}  Rb8 {[%clk 0:02:18]} 13. Rac1 {[%clk 0:02:56]}  b5 {[%clk 0:02:03]} 14. cxb5 {[%clk 0:02:45]}  axb5 {[%clk 0:02:03]} 15. Nxb5 {[%clk 0:02:46]}  Ba6 {[%clk 0:02:02]} 16. a4 {[%clk 0:02:45]}  Nd7 {[%clk 0:01:53]} 17. b4 {[%clk 0:02:23]}  Nb6 {[%clk 0:01:53]} 18. Rc6 {[%clk 0:02:19]}  Bb7 {[%clk 0:01:40]} 19. a5 {[%clk 0:02:15]}  Bxc6 {[%clk 0:01:33]} 20. Bxc6 {[%clk 0:02:16]}  Na4 {[%clk 0:01:33]} 21. Qb3 {[%clk 0:02:01]}  Qc8 {[%clk 0:01:07]} 22. Rc1 {[%clk 0:01:44]}  Nc5 {[%clk 0:01:07]} 23. Qf3 {[%clk 0:01:45]}  Nb3 {[%clk 0:01:03]} 24. Qxb3 {[%clk 0:01:44]}  Qf5 {[%clk 0:00:40]} 25. Qd3 {[%clk 0:01:27]}  Qg4 {[%clk 0:00:15]} 26. a6 {[%clk 0:01:21]}  Rbc8 {[%clk 0:00:11]} 27. a7 {[%clk 0:01:18]}  Bb2 {[%clk 0:00:10]} 28. Rc4 {[%clk 0:01:16]}  Qe6 {[%clk 0:00:09]} 29. Bd5 {[%clk 0:01:14]}  Qd7 {[%clk 0:00:09]} 30. Rxc8 {[%clk 0:01:14]}  Rxc8 {[%clk 0:00:09]} 31. Qxg6+ {[%clk 0:01:13]} 1-0


[Site "https://www.chess.com"]

[Event "Titled Tuesday Blitz December 14 2021"]
[White "Chigaev, Maksim"]
[Black "Vakhlamov, Igor L."]
[WhiteFideId "4108116"]
[BlackFideId "24126748"]
[WhiteElo "2546"]
[BlackElo "2416"]
[Result "1-0"]
[Round "03"]
[TimeControl "180+1"]
[Date "2021.12.14"]
[WhiteClock "0:00:53"]
[BlackClock "0:00:09"]

1. Nf3 {[%clk 0:03:00]}  Nf6 {[%clk 0:02:58]} 2. d4 {[%clk 0:03:00]}  d5 {[%clk 0:02:57]} 3. Bf4 {[%clk 0:03:01]}  Bf5 {[%clk 0:02:57]} 4. c4 {[%clk 0:03:00]}  e6 {[%clk 0:02:56]} 5. Qb3 {[%clk 0:03:01]}  Nc6 {[%clk 0:02:54]} 6. Nbd2 {[%clk 0:03:00]}  a6 {[%clk 0:02:24]} 7. e3 {[%clk 0:02:49]}  Be7 {[%clk 0:01:51]} 8. Be2 {[%clk 0:02:42]}  O-O {[%clk 0:01:50]} 9. O-O {[%clk 0:02:42]}  Na5 {[%clk 0:01:50]} 10. Qc3 {[%clk 0:02:34]}  Nxc4 {[%clk 0:01:34]} 11. Nxc4 {[%clk 0:02:34]}  dxc4 {[%clk 0:01:34]} 12. Qxc4 {[%clk 0:02:35]}  Rc8 {[%clk 0:01:33]} 13. Rfd1 {[%clk 0:02:34]}  Qd5 {[%clk 0:01:28]} 14. Ne5 {[%clk 0:02:12]}  c5 {[%clk 0:01:22]} 15. dxc5 {[%clk 0:02:06]}  Qxc5 {[%clk 0:01:05]} 16. Qxc5 {[%clk 0:01:49]}  Bxc5 {[%clk 0:01:06]} 17. Bf3 {[%clk 0:01:43]}  Be4 {[%clk 0:00:53]} 18. Bxe4 {[%clk 0:01:43]}  Nxe4 {[%clk 0:00:53]} 19. Nd7 {[%clk 0:01:43]}  Rfd8 {[%clk 0:00:48]} 20. f3 {[%clk 0:01:33]}  g5 {[%clk 0:00:37]} 21. Nxc5 {[%clk 0:01:16]}  Rxd1+ {[%clk 0:00:35]} 22. Rxd1 {[%clk 0:01:17]}  Rxc5 {[%clk 0:00:35]} 23. Bb8 {[%clk 0:01:14]}  Nf6 {[%clk 0:00:31]} 24. e4 {[%clk 0:01:13]}  Rc2 {[%clk 0:00:28]} 25. Be5 {[%clk 0:01:10]}  Kg7 {[%clk 0:00:25]} 26. g4 {[%clk 0:01:06]}  Kg6 {[%clk 0:00:23]} 27. Rd8 {[%clk 0:01:07]}  h5 {[%clk 0:00:18]} 28. h3 {[%clk 0:01:02]}  hxg4 {[%clk 0:00:17]} 29. hxg4 {[%clk 0:01:01]}  b5 {[%clk 0:00:15]} 30. a3 {[%clk 0:00:59]}  Rc5 {[%clk 0:00:14]} 31. Bc3 {[%clk 0:00:56]}  Rc6 {[%clk 0:00:14]} 32. Kf2 {[%clk 0:00:54]}  Rc7 {[%clk 0:00:09]} 33. Ke3 {[%clk 0:00:53]}  Rd7 {[%clk 0:00:06]} 34. Bxf6 {[%clk 0:00:52]}  Kxf6 {[%clk 0:00:06]} 35. Rxd7 {[%clk 0:00:53]}  Ke5 {[%clk 0:00:05]} 36. Rxf7 {[%clk 0:00:52]}  b4 {[%clk 0:00:05]} 37. axb4 {[%clk 0:00:52]}  a5 {[%clk 0:00:05]} 38. bxa5 {[%clk 0:00:53]}  Kd6 {[%clk 0:00:05]} 39. a6 {[%clk 0:00:53]}  Ke5 {[%clk 0:00:05]} 40. a7 {[%clk 0:00:53]}  Kd6 {[%clk 0:00:06]} 41. Rg7 {[%clk 0:00:53]}  Ke5 {[%clk 0:00:07]} 42. Rxg5+ {[%clk 0:00:54]}  Kf6 {[%clk 0:00:08]} 43. Ra5 {[%clk 0:00:54]}  Kg6 {[%clk 0:00:08]} 44. a8=Q {[%clk 0:00:54]}  e5 {[%clk 0:00:09]} 45. Rxe5 {[%clk 0:00:53]}  Kf6 {[%clk 0:00:09]} 46. Rf5+ {[%clk 0:00:53]} 1-0


[Site "https://www.chess.com"]

[Event "Titled Tuesday Blitz December 14 2021"]
[White "Erdogdu, Mert"]
[Black "Lazavik, Denis"]
[WhiteFideId "6301495"]
[BlackFideId "13515110"]
[WhiteElo "2485"]
[BlackElo "2436"]
[Result "0-1"]
[Round "03"]
[TimeControl "180+1"]
[Date "2021.12.14"]
[WhiteClock "0:00:12"]
[BlackClock "0:00:05"]

1. e4 {[%clk 0:03:00]}  e5 {[%clk 0:02:59]} 2. Nf3 {[%clk 0:03:00]}  Nc6 {[%clk 0:03:00]} 3. Bc4 {[%clk 0:03:01]}  Bc5 {[%clk 0:02:58]} 4. d3 {[%clk 0:03:01]}  Nf6 {[%clk 0:02:58]} 5. O-O {[%clk 0:03:01]}  d6 {[%clk 0:02:58]} 6. a4 {[%clk 0:02:57]}  h6 {[%clk 0:02:57]} 7. c3 {[%clk 0:02:57]}  a5 {[%clk 0:02:54]} 8. Nbd2 {[%clk 0:02:53]}  O-O {[%clk 0:02:53]} 9. Re1 {[%clk 0:02:52]}  Re8 {[%clk 0:02:45]} 10. Nf1 {[%clk 0:02:48]}  Be6 {[%clk 0:02:44]} 11. Bb5 {[%clk 0:02:48]}  Bd7 {[%clk 0:02:14]} 12. Ng3 {[%clk 0:02:40]}  Bb6 {[%clk 0:02:06]} 13. h3 {[%clk 0:02:36]}  Ne7 {[%clk 0:02:05]} 14. Bc4 {[%clk 0:02:19]}  Ng6 {[%clk 0:02:02]} 15. d4 {[%clk 0:02:17]}  Nh7 {[%clk 0:01:29]} 16. Be3 {[%clk 0:02:10]}  Bc6 {[%clk 0:01:09]} 17. Qd2 {[%clk 0:01:40]}  exd4 {[%clk 0:00:43]} 18. Bxd4 {[%clk 0:01:35]}  Ne5 {[%clk 0:00:42]} 19. Be2 {[%clk 0:01:22]}  Nxf3+ {[%clk 0:00:39]} 20. Bxf3 {[%clk 0:01:22]}  Ng5 {[%clk 0:00:39]} 21. Bxb6 {[%clk 0:01:08]}  Nxf3+ {[%clk 0:00:37]} 22. gxf3 {[%clk 0:01:09]}  cxb6 {[%clk 0:00:37]} 23. Qd4 {[%clk 0:01:01]}  Bd7 {[%clk 0:00:32]} 24. Kh2 {[%clk 0:00:55]}  Qh4 {[%clk 0:00:27]} 25. Rh1 {[%clk 0:00:35]}  Re6 {[%clk 0:00:21]} 26. Kg2 {[%clk 0:00:32]}  Rg6 {[%clk 0:00:22]} 27. Rad1 {[%clk 0:00:30]}  Re8 {[%clk 0:00:17]} 28. Qxb6 {[%clk 0:00:23]}  Ree6 {[%clk 0:00:15]} 29. Qxb7 {[%clk 0:00:16]}  Bxa4 {[%clk 0:00:13]} 30. Rd4 {[%clk 0:00:15]}  Be8 {[%clk 0:00:06]} 31. Qa8 {[%clk 0:00:13]}  Kh7 {[%clk 0:00:05]} 32. Qxa5 {[%clk 0:00:11]}  Rg5 {[%clk 0:00:03]} 33. Qd8 {[%clk 0:00:10]}  Rxg3+ {[%clk 0:00:02]} 34. fxg3 {[%clk 0:00:10]}  Qxd8 {[%clk 0:00:03]} 35. Rhd1 {[%clk 0:00:10]}  Qb6 {[%clk 0:00:03]} 36. R1d2 {[%clk 0:00:11]}  Rg6 {[%clk 0:00:03]} 37. g4 {[%clk 0:00:11]}  h5 {[%clk 0:00:03]} 38. Kg3 {[%clk 0:00:11]}  hxg4 {[%clk 0:00:04]} 39. hxg4 {[%clk 0:00:12]}  Kg8 {[%clk 0:00:04]} 40. b4 {[%clk 0:00:11]}  Qc7 {[%clk 0:00:05]} 41. R2d3 {[%clk 0:00:11]}  d5+ {[%clk 0:00:05]} 42. Kf2 {[%clk 0:00:11]}  dxe4 {[%clk 0:00:05]} 43. Rxe4 {[%clk 0:00:11]}  Qh2+ {[%clk 0:00:05]} 44. Ke3 {[%clk 0:00:11]}  Re6 {[%clk 0:00:06]} 45. Rd8 {[%clk 0:00:11]}  Rxe4+ {[%clk 0:00:05]} 46. Kxe4 {[%clk 0:00:12]}  Qe2+ {[%clk 0:00:05]} 47. Kf4 {[%clk 0:00:12]}  g5+ {[%clk 0:00:05]} 48. Kxg5 {[%clk 0:00:12]}  Qe7+ {[%clk 0:00:05]} 0-1


[Site "https://www.chess.com"]

[Event "Titled Tuesday Blitz December 14 2021"]
[White "Fawzy, Adham"]
[Black "Makhnev, Denis"]
[WhiteFideId "10613129"]
[BlackFideId "13707647"]
[WhiteElo "2508"]
[BlackElo "2491"]
[Result "1-0"]
[Round "03"]
[TimeControl "180+1"]
[Date "2021.12.14"]
[WhiteClock "0:02:37"]
[BlackClock "0:01:05"]

1. e4 {[%clk 0:03:00]}  e5 {[%clk 0:03:00]} 2. Nf3 {[%clk 0:03:00]}  Nc6 {[%clk 0:03:00]} 3. d4 {[%clk 0:03:01]}  exd4 {[%clk 0:03:00]} 4. Bc4 {[%clk 0:03:01]}  Bc5 {[%clk 0:02:56]} 5. O-O {[%clk 0:03:01]}  Nf6 {[%clk 0:02:57]} 6. e5 {[%clk 0:03:01]}  d5 {[%clk 0:02:56]} 7. exf6 {[%clk 0:03:02]}  dxc4 {[%clk 0:02:56]} 8. fxg7 {[%clk 0:03:03]}  Rg8 {[%clk 0:02:57]} 9. Re1+ {[%clk 0:03:04]}  Be6 {[%clk 0:02:55]} 10. Bg5 {[%clk 0:03:04]}  Qd5 {[%clk 0:02:37]} 11. Nc3 {[%clk 0:03:03]}  Qf5 {[%clk 0:02:32]} 12. Ne4 {[%clk 0:03:02]}  Be7 {[%clk 0:01:26]} 13. Bxe7 {[%clk 0:02:59]}  Kxe7 {[%clk 0:01:27]} 14. Nxd4 {[%clk 0:02:59]}  Nxd4 {[%clk 0:01:21]} 15. Qxd4 {[%clk 0:03:00]}  b6 {[%clk 0:01:22]} 16. Rad1 {[%clk 0:02:53]}  Rad8 {[%clk 0:01:04]} 17. Qxd8+ {[%clk 0:02:43]}  Rxd8 {[%clk 0:01:03]} 18. Rxd8 {[%clk 0:02:44]}  f6 {[%clk 0:01:04]} 19. g8=Q {[%clk 0:02:38]}  Bxg8 {[%clk 0:01:04]} 20. Ng3+ {[%clk 0:02:38]}  Kf7 {[%clk 0:01:05]} 21. Nxf5 {[%clk 0:02:37]} 1-0


[Site "https://www.chess.com"]